bitfinex/quotes_BTCUSD_20251219
["timestamp","ask_amount","ask_price","bid_price","bid_amount"]
[1766177777190,0.01134751,88125.0,88107.0,0.49103]
[1766177777411,0.01134738,88126.0,88107.0,0.50237983]
[1766177777586,0.01134816,88120.0,88105.0,0.00572]
[1766177777789,0.01134829,88119.0,88105.0,0.00572]
[1766177777995,0.58725,88119.0,88105.0,0.00572]
[1766177778474,0.01134841,88118.0,88105.0,0.00572]
[1766177778699,0.59859867,88116.0,88102.0,0.00572]
[1766177778897,0.58725,88116.0,88102.0,0.00572]
[1766177779103,0.59859867,88116.0,88102.0,0.00572]
[1766177779324,0.58725,88116.0,88102.0,0.00572]
[1766177779526,0.59009,88114.0,88102.0,0.00572]
[1766177779857,0.22691874,88138.0,88096.0,0.0340967]
[1766177779858,0.48296,88113.0,88096.0,0.0340967]
[1766177780066,0.59009,88111.0,88097.0,0.01135112]
[1766177780277,0.59009,88111.0,88096.0,0.54726192]
[1766177780483,0.59009,88111.0,88096.0,0.53591067]
[1766177780703,0.59009,88110.0,88096.0,0.5223367]
[1766177781112,0.59009,88109.0,88096.0,0.53368795]
[1766177781324,0.59009,88109.0,88096.0,0.5223367]
[1766177782521,0.59009,88109.0,88096.0,0.48824]
[1766177783782,0.60143957,88109.0,88096.0,0.48824]
[1766177784186,0.59009,88109.0,88096.0,0.48824]
[1766177785052,0.59009,88109.0,88096.0,0.49959125]
[1766177785366,0.47724,88110.0,88101.0,0.0113506]
[1766177785589,0.00199998,88160.0,88109.0,0.06809718]
[1766177785793,0.00199998,88160.0,88097.0,0.01357397]
[1766177785794,1.06733,88133.0,88116.0,0.01134867]
[1766177785999,0.00572,88134.0,88125.0,0.01134751]
[1766177786205,0.59009,88142.0,88126.0,0.48824]
[1766177786406,0.00572,88138.0,88126.0,0.48824]
[1766177787142,0.00010823,88138.0,88126.0,0.48824]
[1766177787342,0.00572,88137.0,88126.0,0.48824]
[1766177789023,0.01706597,88137.0,88123.0,0.00572]
[1766177789241,0.01134623,88135.0,88119.0,0.00572]
[1766177789445,0.59009,88134.0,88119.0,0.00572]
[1766177789656,0.60143635,88134.0,88119.0,0.00572]
[1766177790095,0.59009,88128.0,88119.0,0.00572]
[1766177790692,0.01134738,88126.0,88111.0,0.50181397]
[1766177790940,0.48858829,88119.0,88099.0,0.01135086]
[1766177791131,0.59009,88117.0,88101.0,0.00572]
[1766177791476,0.59009,88117.0,88101.0,0.0170706]
[1766177792440,0.59009,88117.0,88101.0,0.5053106]
[1766177792602,0.59009,88117.0,88102.0,0.01135048]
[1766177792814,0.59009,88117.0,88101.0,0.49396]
[1766177792815,0.60143854,88117.0,88101.0,0.49396]
[1766177792983,0.0113488,88115.0,88101.0,0.49396]
[1766177793405,0.0113488,88115.0,88101.0,0.48824]
[1766177793748,0.01134893,88114.0,88101.0,0.48824]
[1766177793934,0.06809331,88115.0,88097.0,0.61741]
[1766177793935,0.59009,88109.0,88097.0,0.00572]
[1766177794076,0.59009,88109.0,88093.0,0.48824]
[1766177794077,0.4501,88107.0,88093.0,0.48824]
[1766177794275,0.4501,88101.0,88089.0,0.03409794]
[1766177794476,0.60528,88099.0,88088.0,0.00572]
[1766177795124,0.60528,88099.0,88088.0,0.00582815]
[1766177795944,0.00572,88102.0,88088.0,0.47812815]
[1766177796117,0.00572,88102.0,88089.0,0.01135215]
[1766177796351,0.00572,88102.0,88090.0,0.4723]
[1766177797130,0.60528,88106.0,88090.0,0.48365202]
[1766177797288,0.00572,88102.0,88091.0,0.01135189]
[1766177797690,0.00572,88102.0,88090.0,0.4723]
[1766177797992,0.00572,88102.0,88090.0,0.48365202]
[1766177798260,0.00572,88102.0,88090.0,0.4723]
[1766177799187,0.01707048,88102.0,88090.0,0.4723]
[1766177799363,0.00572,88102.0,88090.0,0.4723]
[1766177799781,0.01707048,88102.0,88090.0,0.4723]
[1766177800142,0.0113506,88101.0,88090.0,0.4723]
[1766177800350,0.01707048,88102.0,88088.0,0.00582815]
[1766177800351,0.00572,88102.0,88088.0,0.00582815]
[1766177800559,0.00572,88102.0,88089.0,0.4723]
[1766177800759,0.0113506,88101.0,88089.0,0.4723]
[1766177800962,0.01135073,88100.0,88089.0,0.4723]
[1766177801242,0.01135086,88099.0,88089.0,0.4723]
[1766177801430,0.07382303,88102.0,88087.0,0.00024977]
[1766177801431,0.01135189,88091.0,88087.0,0.00024977]
[1766177801635,0.00010815,88091.0,88079.0,0.00572]
[1766177801813,0.60528,88090.0,88079.0,0.00572]
[1766177802375,0.61663202,88090.0,88079.0,0.00572]
[1766177802578,0.01135228,88088.0,88079.0,0.00572]
[1766177802807,0.61663202,88090.0,88079.0,0.00572]
[1766177804271,0.61663202,88090.0,88076.0,0.4723]
[1766177804473,0.61663202,88090.0,88080.0,0.00572]
[1766177804851,0.60528,88090.0,88080.0,0.00572]
[1766177805937,0.00010815,88091.0,88080.0,0.00572]
[1766177806859,0.00010815,88091.0,88080.0,0.47802]
[1766177808779,0.01135202,88090.0,88080.0,0.47802]
[1766177808981,0.01135215,88089.0,88080.0,0.47802]
[1766177809196,0.01135228,88088.0,88080.0,0.47802]
[1766177809408,0.01135228,88088.0,88072.0,0.0004]
[1766177809409,0.4501,88083.0,88072.0,0.0004]
[1766177809641,0.60528,88082.0,88072.0,0.0004]
[1766177809854,0.60528,88082.0,88072.0,0.00612]
[1766177810244,0.00572,88085.0,88072.0,0.00612]
[1766177810651,0.00572,88085.0,88072.0,0.47842]
[1766177810855,0.00572,88085.0,88074.0,0.4723]
[1766177811258,0.00572,88085.0,88077.0,0.4723]
[1766177811487,0.00572,88086.0,88077.0,0.4723]
[1766177811725,0.00572,88090.0,88077.0,0.4723]
[1766177812101,0.07383255,88090.0,88077.0,0.4723]
[1766177812328,0.00572,88090.0,88077.0,0.4723]
[1766177813741,0.00572,88090.0,88077.0,0.4836537]
[1766177814060,0.00408655,88095.0,88083.0,0.58885]
[1766177814280,0.06811064,88092.0,88078.0,0.00572]
[1766177814454,0.01135267,88085.0,88078.0,0.00572]
[1766177814631,0.01135254,88086.0,88078.0,0.00572]
[1766177814881,0.01135267,88085.0,88078.0,0.00572]
[1766177815065,0.01135215,88089.0,88079.0,0.00024784]
[1766177815451,0.4501,88096.0,88079.0,0.00024784]
[1766177815452,0.60528,88093.0,88079.0,0.00024784]
[1766177815814,0.67339018,88093.0,88079.0,0.00024784]
[1766177816018,0.61663163,88093.0,88079.0,0.00024784]
[1766177816193,0.01135189,88091.0,88079.0,0.00024784]
[1766177816394,0.01135189,88091.0,88080.0,0.00572]
[1766177816604,0.01135176,88092.0,88080.0,0.00572]
[1766177817776,0.068112,88091.0,88080.0,0.00572]
[1766177817982,0.01135215,88089.0,88080.0,0.00572]
[1766177818217,0.01135241,88087.0,88079.0,0.00024784]
[1766177818414,0.01135267,88085.0,88079.0,0.00596784]
[1766177818651,0.01135228,88088.0,88079.0,0.47826784]
[1766177818825,0.01135254,88086.0,88079.0,0.47826784]
[1766177819036,0.01135254,88086.0,88079.0,0.00024784]
[1766177819037,0.01135292,88083.0,88079.0,0.00024784]
[1766177819456,0.01135305,88082.0,88079.0,0.00024784]
[1766177820116,0.06811834,88082.0,88079.0,0.00024784]
[1766177820323,0.01135163,88093.0,88079.0,0.00024784]
[1766177820542,9.413e-05,88095.0,88079.0,0.58909784]
[1766177820742,0.00572,88094.0,88083.0,0.4723]
[1766177820891,0.00572,88094.0,88085.0,0.4723]
[1766177821487,0.01135163,88093.0,88085.0,0.4723]
[1766177821873,0.01135176,88092.0,88085.0,0.4723]
[1766177822077,0.01135202,88090.0,88085.0,0.4723]
[1766177822304,0.01135202,88090.0,88080.0,0.00572]
[1766177822727,0.01135215,88089.0,88080.0,0.00572]
[1766177822927,0.01135202,88090.0,88080.0,0.00572]
[1766177823183,0.66203889,88092.0,88079.0,0.00024784]
[1766177823184,0.01135228,88088.0,88079.0,0.00024784]
[1766177823355,0.01135447,88071.0,88056.0,0.58925]
[1766177823561,0.00270871,88072.0,88062.0,0.00572]
[1766177823762,0.00270871,88072.0,88064.0,0.58885]
[1766177824005,0.00572,88078.0,88064.0,0.60020537]
[1766177824155,0.00572,88082.0,88066.0,0.5668]
[1766177824580,0.01135331,88080.0,88066.0,0.5668]
[1766177824785,0.00572,88082.0,88066.0,0.5668]
[1766177825013,0.00572,88082.0,88069.0,0.01135473]
[1766177825203,0.00572,88082.0,88068.0,0.58387486]
[1766177825427,0.00572,88082.0,88070.0,0.5781546]
[1766177825710,0.00572,88082.0,88071.0,0.48958]
[1766177827247,0.01135357,88078.0,88071.0,0.48958]
[1766177827482,0.01135318,88081.0,88071.0,0.48958]
[1766177827684,0.01707305,88082.0,88071.0,0.48958]
[1766177827825,0.01135331,88080.0,88071.0,0.48958]
[1766177829109,0.01135318,88081.0,88071.0,0.48958]
[1766177830639,0.00572,88082.0,88071.0,0.48958]
[1766177830858,0.58555395,88075.0,88065.0,0.00572]
[1766177831080,0.58555408,88074.0,88061.0,0.0004]
[1766177831291,0.5742,88074.0,88061.0,0.0004]
[1766177831898,0.58555408,88074.0,88061.0,0.0004]
[1766177832073,0.01135421,88073.0,88061.0,0.0004]
[1766177832301,0.58555408,88074.0,88061.0,0.0004]
[1766177832505,0.01135421,88073.0,88061.0,0.0004]
[1766177832806,0.01135434,88072.0,88061.0,0.0004]
[1766177833042,0.01135421,88073.0,88061.0,0.0004]
[1766177833249,0.01135434,88072.0,88061.0,0.0004]
[1766177833712,0.48389,88075.0,88062.0,0.48958]
[1766177834470,0.48389,88075.0,88071.0,0.00024789]
[1766177835289,0.49524395,88075.0,88071.0,0.00024789]
[1766177835899,0.48389,88075.0,88071.0,0.00024789]
[1766177836809,0.01135408,88074.0,88071.0,0.00024789]
[1766177837190,0.48389,88075.0,88071.0,0.00024789]
[1766177837394,0.00572,88076.0,88071.0,0.00024789]
[1766177838290,0.01707383,88076.0,88071.0,0.00024789]
[1766177838517,0.00572,88076.0,88071.0,0.00024789]
[1766177839502,0.59294,88076.0,88071.0,0.00024789]
[1766177839702,0.48066,88068.0,88061.0,0.0004]
[1766177840022,0.58722,88067.0,88056.0,0.00612]
[1766177840421,0.58722,88067.0,88063.0,0.00024791]
[1766177841042,0.58722,88067.0,88063.0,0.00060859]
[1766177841261,0.00572,88068.0,88064.0,0.49709]
[1766177841484,0.00572,88070.0,88064.0,0.49709]
[1766177842037,0.04548,88082.0,88066.0,0.49709]
[1766177842360,0.01135344,88079.0,88067.0,0.49709]
[1766177842678,0.0113537,88077.0,88067.0,0.49709]
[1766177842901,0.0567685,88077.0,88067.0,0.49709]
[1766177843075,0.01135408,88074.0,88067.0,0.49709]
[1766177843281,0.01135383,88076.0,88067.0,0.49709]
[1766177843507,0.01135395,88075.0,88067.0,0.49709]
[1766177843682,0.01135383,88076.0,88067.0,0.49709]
[1766177844188,0.01135357,88078.0,88067.0,0.49709]
[1766177844546,0.0113537,88077.0,88067.0,0.49709]
[1766177844752,0.06812002,88080.0,88067.0,0.49709]
[1766177844952,0.0113537,88077.0,88067.0,0.49709]
[1766177845163,0.05676722,88079.0,88067.0,0.49709]
[1766177845370,0.01135357,88078.0,88067.0,0.49709]
[1766177845901,0.0113537,88077.0,88067.0,0.49709]
[1766177846249,0.01135344,88079.0,88067.0,0.49709]
[1766177846468,0.01135408,88074.0,88069.0,0.49709]
[1766177846743,0.01135395,88075.0,88065.0,0.01357397]
[1766177847166,0.01135421,88073.0,88063.0,0.00632859]
[1766177847377,0.01135512,88066.0,88063.0,0.00060859]
[1766177848119,0.06812809,88070.0,88063.0,0.00060859]
[1766177848120,0.60429421,88073.0,88063.0,0.00060859]
[1766177848320,0.58722,88071.0,88063.0,0.00060859]
[1766177848728,0.0113546,88070.0,88063.0,0.00060859]
[1766177848937,0.59857447,88071.0,88063.0,0.00060859]
[1766177849143,0.48066,88072.0,88063.0,0.00060859]
[1766177849354,0.49201434,88072.0,88063.0,0.00060859]
[1766177849554,0.48066,88072.0,88063.0,0.00060859]
[1766177849991,0.00572,88073.0,88063.0,0.00060859]
[1766177853339,0.01707421,88073.0,88063.0,0.00060859]
[1766177853534,0.00572,88073.0,88063.0,0.00060859]
[1766177853734,0.07384541,88073.0,88063.0,0.00060859]
[1766177853940,0.01135447,88071.0,88063.0,0.00060859]
[1766177854145,0.0113546,88070.0,88063.0,0.00060859]
[1766177854342,0.01135447,88071.0,88063.0,0.00060859]
[1766177854817,0.0113546,88070.0,88063.0,0.00060859]
[1766177855196,0.01135434,88072.0,88063.0,0.00060859]
[1766177855601,0.0113546,88070.0,88063.0,0.00060859]
[1766177856232,0.01135447,88071.0,88063.0,0.00060859]
[1766177856858,0.01135486,88068.0,88063.0,0.00060859]
[1766177857056,0.0681272,88071.0,88063.0,0.00060859]
[1766177857318,0.01135447,88071.0,88063.0,0.00060859]
[1766177857433,0.0113546,88070.0,88063.0,0.00060859]
[1766177857638,0.01135447,88071.0,88063.0,0.00060859]
[1766177858095,0.0113546,88070.0,88063.0,0.00060859]
[1766177858445,0.01135473,88069.0,88063.0,0.00060859]
[1766177858646,0.0113546,88070.0,88063.0,0.00060859]
[1766177859151,0.06812726,88071.0,88063.0,0.00060859]
[1766177859152,0.01135447,88071.0,88063.0,0.00060859]
[1766177859447,0.0113546,88070.0,88063.0,0.00060859]
[1766177859592,0.06812795,88070.0,88063.0,0.00060859]
[1766177859793,0.01135486,88068.0,88063.0,0.00060859]
[1766177859992,0.01135473,88069.0,88063.0,0.00060859]
[1766177860423,0.0113546,88070.0,88063.0,0.00060859]
[1766177860627,0.01135447,88071.0,88063.0,0.00060859]
[1766177861257,0.00572,88074.0,88066.0,0.01357397]
[1766177861461,0.00572,88081.0,88067.0,0.60371]
[1766177861658,0.5686,88098.0,88084.0,0.46453]
[1766177861910,0.11357995,88106.0,88084.0,0.46453]
[1766177861911,0.45695,88097.0,88084.0,0.46453]
[1766177862115,0.00572,88096.0,88084.0,0.46453]
[1766177862316,0.01135151,88094.0,88084.0,0.46453]
[1766177862492,0.01135163,88093.0,88084.0,0.46453]
[1766177862994,0.06810924,88094.0,88084.0,0.46453]
[1766177863198,0.01135151,88094.0,88084.0,0.46453]
[1766177863441,0.00572,88096.0,88084.0,0.46453]
[1766177864543,0.01707125,88096.0,88084.0,0.46453]
[1766177864748,0.57995138,88095.0,88084.0,0.46453]
[1766177864922,0.5686,88095.0,88084.0,0.46453]
[1766177865341,0.57995138,88095.0,88084.0,0.46453]
[1766177865797,0.01135151,88094.0,88084.0,0.46453]
[1766177865997,0.57995138,88095.0,88084.0,0.46453]
[1766177866562,0.5686,88093.0,88080.0,0.01929397]
[1766177866770,0.57995163,88093.0,88080.0,0.01929397]
[1766177867085,0.5686,88093.0,88080.0,0.01929397]
[1766177868055,0.01135176,88092.0,88080.0,0.01929397]
[1766177868311,0.57995163,88093.0,88080.0,0.01929397]
[1766177868614,0.01135163,88093.0,88080.0,0.62300397]
[1766177868840,0.57995151,88094.0,88080.0,0.62300397]
[1766177869117,0.01135163,88093.0,88080.0,0.62300397]
[1766177869318,0.5686,88094.0,88080.0,1.08753397]
[1766177869527,0.01135163,88093.0,88081.0,0.46453]
[1766177870434,0.01135202,88090.0,88081.0,0.46453]
[1766177870728,0.01135215,88089.0,88081.0,0.46453]
[1766177870962,0.01135202,88090.0,88081.0,0.46453]
[1766177871136,0.57995163,88093.0,88081.0,0.46453]
[1766177871343,0.01135151,88094.0,88081.0,1.06824]
[1766177871546,0.01135151,88094.0,88082.0,0.46453]
[1766177871705,0.01135163,88093.0,88082.0,0.46453]
[1766177872323,0.01135189,88091.0,88082.0,0.46453]
[1766177872942,0.01135176,88092.0,88082.0,0.46453]
[1766177873121,0.01135163,88093.0,88082.0,0.46453]
[1766177873327,0.01135176,88092.0,88082.0,0.46453]
[1766177873605,0.62535703,88095.0,88082.0,0.46453]
[1766177874229,0.05675817,88094.0,88082.0,0.46453]
[1766177874434,0.01135176,88092.0,88082.0,0.46453]
[1766177874826,0.01135202,88090.0,88082.0,0.46453]
[1766177875182,0.5686,88084.0,88066.0,0.46453]
[1766177875370,0.01135331,88080.0,88068.0,0.46453]
[1766177875514,0.01135318,88081.0,88068.0,0.46453]
[1766177875848,0.01135331,88080.0,88068.0,0.46453]
[1766177876210,0.01135318,88081.0,88068.0,0.46453]
[1766177876419,0.01135344,88079.0,88068.0,0.46453]
[1766177876662,0.01135357,88078.0,88070.0,0.46453]
[1766177877285,0.0113537,88077.0,88070.0,0.46453]
[1766177877695,0.01135357,88078.0,88070.0,0.46453]
[1766177877911,0.0113537,88077.0,88070.0,0.46453]
[1766177878248,0.01135357,88078.0,88070.0,0.46453]
[1766177878452,0.01135344,88079.0,88070.0,0.46453]
[1766177878653,0.0113537,88077.0,88070.0,0.46453]
[1766177879118,0.01135344,88079.0,88070.0,0.46453]
[1766177879360,0.01135331,88080.0,88070.0,0.46453]
[1766177879520,0.01135318,88081.0,88068.0,0.46453]
[1766177879755,0.01135318,88081.0,88068.0,1.06824]
[1766177879939,0.00572,88084.0,88072.0,0.46453]
[1766177880115,0.00572,88089.0,88079.0,0.46453]
[1766177880727,0.00572,88089.0,88081.0,0.46453]
[1766177880956,0.00572,88089.0,88082.0,0.46453]
[1766177881932,0.5686,88087.0,88079.0,0.00572]
[1766177882132,0.45695,88089.0,88079.0,0.00572]
[1766177882133,0.45123,88086.0,88079.0,0.00572]
[1766177882384,0.46258254,88086.0,88079.0,0.00572]
[1766177882733,0.01135383,88076.0,88063.0,0.00060859]
[1766177882945,0.00572,88080.0,88068.0,0.01135486]
[1766177883128,0.01135292,88083.0,88071.0,0.60371]
[1766177883326,0.01135292,88083.0,88074.0,0.46453]
[1766177883723,0.01707279,88084.0,88074.0,0.46453]
[1766177883724,0.01135357,88078.0,88074.0,0.46453]
[1766177883924,0.01135344,88079.0,88074.0,0.46453]
[1766177884273,0.01135305,88082.0,88074.0,0.46453]
[1766177884691,0.01135292,88083.0,88074.0,0.46453]
[1766177885192,0.01135305,88082.0,88074.0,0.46453]
[1766177885395,0.01135318,88081.0,88074.0,0.46453]
[1766177885594,0.00572,88084.0,88074.0,0.46453]
[1766177885793,0.01707279,88084.0,88075.0,0.4708]
[1766177885997,0.01135292,88083.0,88075.0,0.4708]
[1766177886198,0.00572,88084.0,88075.0,0.4708]
[1766177886390,0.01707279,88084.0,88075.0,0.4708]
[1766177886612,0.00572,88084.0,88075.0,0.4708]
[1766177888025,0.01135305,88082.0,88073.0,0.00572]
[1766177888233,0.0113537,88077.0,88068.0,0.4708]
[1766177888442,0.63113344,88079.0,88070.0,0.00572]
[1766177888614,0.01135318,88081.0,88070.0,0.00572]
[1766177888830,0.01135305,88082.0,88070.0,0.00572]
[1766177889039,0.01707279,88084.0,88070.0,0.00572]
[1766177889238,0.00572,88084.0,88071.0,0.4708]
[1766177889454,0.01135292,88083.0,88071.0,0.4708]
[1766177889589,0.63113344,88079.0,88068.0,0.00572]
[1766177889799,0.0113537,88077.0,88068.0,0.00572]
[1766177889985,0.01135383,88076.0,88068.0,0.00572]
[1766177890180,0.06812175,88078.0,88068.0,0.00572]
[1766177890181,0.01135357,88078.0,88068.0,0.00572]
[1766177890440,0.0113537,88077.0,88068.0,0.00572]
[1766177890895,0.01135383,88076.0,88068.0,0.00572]
[1766177891055,0.01135357,88078.0,88068.0,0.00572]
[1766177891262,0.01135344,88079.0,88068.0,0.00572]
[1766177891461,0.47858318,88081.0,88068.0,0.00572]
[1766177891665,0.01135344,88079.0,88068.0,0.47652]
[1766177891864,0.47858318,88081.0,88068.0,0.47652]
[1766177892123,0.00572,88084.0,88076.0,0.4708]
[1766177892762,0.00572,88084.0,88068.0,0.47652]
[1766177892763,0.6255,88084.0,88068.0,0.47652]
[1766177892961,0.61978,88078.0,88058.0,0.48215615]
[1766177893108,0.61978,88078.0,88064.0,0.00572]
[1766177893109,0.01135447,88071.0,88064.0,0.00572]
[1766177893311,0.6311346,88070.0,88061.0,0.00572]
[1766177893511,0.0681286,88069.0,88061.0,0.00572]
[1766177893715,0.01135486,88068.0,88059.0,0.00572]
[1766177894035,0.63113512,88066.0,88056.0,0.0004]
[1766177894451,0.01135524,88065.0,88056.0,0.0004]
[1766177894678,0.63113512,88066.0,88056.0,0.0004]
[1766177894970,0.01135602,88059.0,88056.0,0.0004]
[1766177895183,0.61978,88056.0,88034.0,0.62656924]
[1766177895444,0.01707615,88058.0,88044.0,0.61521]
[1766177895445,0.00572,88058.0,88044.0,0.61521]
[1766177895619,0.00572,88058.0,88045.0,0.4708]
[1766177895853,0.01707615,88058.0,88046.0,0.47652]
[1766177896059,0.00572,88058.0,88046.0,0.47652]
[1766177896233,0.01707615,88058.0,88046.0,0.47652]
[1766177896408,0.00572,88058.0,88046.0,0.47652]
[1766177896812,0.00572,88058.0,88050.0,0.05678588]
[1766177897016,0.00036068,88068.0,88054.0,0.4708]
[1766177897256,0.01707499,88067.0,88057.0,0.4708]
[1766177897480,0.00572,88067.0,88057.0,0.4708]
[1766177897902,0.00572,88067.0,88057.0,0.61521]
[1766177898072,0.01135512,88066.0,88058.0,0.4708]
[1766177898229,0.01135524,88065.0,88058.0,0.4708]
[1766177898428,0.01135512,88066.0,88058.0,0.4708]
[1766177898645,0.01707499,88067.0,88058.0,0.4708]
[1766177898835,0.00572,88067.0,88058.0,0.4708]
[1766177899815,0.01135512,88066.0,88058.0,0.4708]
[1766177900010,0.01135512,88066.0,88053.0,0.00572]
[1766177900011,0.0113555,88063.0,88053.0,0.00572]
[1766177900243,0.61978,88065.0,88053.0,0.00572]
[1766177900641,0.01135537,88064.0,88055.0,0.00024795]
[1766177900855,0.63113524,88065.0,88055.0,0.00024795]
[1766177900856,0.61978,88065.0,88055.0,0.00024795]
[1766177901001,0.00572,88067.0,88055.0,0.00024795]
[1766177901215,0.01707499,88067.0,88055.0,0.00024795]
[1766177901440,0.01135537,88064.0,88055.0,0.00024795]
[1766177902616,0.0113555,88063.0,88055.0,0.00024795]
[1766177902969,0.01135537,88064.0,88055.0,0.00024795]
[1766177903437,0.0113555,88063.0,88055.0,0.00024795]
[1766177903741,0.01135537,88064.0,88055.0,0.00024795]
[1766177904074,0.0113555,88063.0,88055.0,0.00024795]
[1766177904529,0.06813521,88061.0,88055.0,0.00024795]
[1766177904846,0.0113555,88063.0,88043.0,0.0004]
[1766177904847,0.4603,88052.0,88043.0,0.0004]
[1766177905126,0.00572,88051.0,88043.0,0.0004]
[1766177905714,0.00572,88051.0,88045.0,0.46326]
[1766177905920,0.00572,88055.0,88048.0,0.62431]
[1766177906118,0.00036068,88068.0,88054.0,0.62431]
[1766177906300,6.8e-07,88068.0,88065.0,0.46326]
[1766177906510,0.00572,88077.0,88069.0,0.46326]
[1766177906857,0.04548,88080.0,88069.0,0.46326]
[1766177906858,0.00572081,88079.0,88070.0,0.46326]
[1766177907060,0.00572081,88079.0,88070.0,0.00010815]
[1766177907061,0.05677044,88074.0,88070.0,0.00010815]
[1766177907192,0.01135421,88073.0,88070.0,0.00010815]
[1766177907396,0.05677173,88072.0,88070.0,0.00010815]
[1766177909043,0.58424,88055.0,88043.0,0.00076068]
[1766177909298,0.01135666,88054.0,88043.0,0.00076068]
[1766177909505,0.58424,88055.0,88043.0,0.00076068]
[1766177909831,0.01135705,88051.0,88043.0,0.00076068]
[1766177909955,0.01135731,88049.0,88043.0,0.00076068]
[1766177910159,0.01135705,88051.0,88043.0,0.00076068]
[1766177910399,0.01135705,88051.0,88047.0,0.00024799]
[1766177910662,0.01135705,88051.0,88043.0,0.00076068]
[1766177910663,0.01135769,88046.0,88043.0,0.00076068]
[1766177910945,0.06814637,88046.0,88043.0,0.00076068]
[1766177911527,0.06814637,88046.0,88043.0,6.8e-07]
[1766177911528,0.01135769,88046.0,88043.0,6.8e-07]
[1766177911951,0.01135744,88048.0,88043.0,6.8e-07]
[1766177912155,0.01135757,88047.0,88043.0,6.8e-07]
[1766177912357,0.01135769,88046.0,88043.0,6.8e-07]
[1766177913032,0.05678914,88045.0,88043.0,6.8e-07]
[1766177913830,0.64102914,88045.0,88043.0,6.8e-07]
[1766177914453,0.58424,88045.0,88043.0,6.8e-07]
[1766177914653,0.57889,88041.0,88028.0,0.00572]
[1766177914874,0.57925048,88041.0,88028.0,0.00572]
[1766177915089,4.8e-07,88041.0,88034.0,0.45796]
[1766177915229,4.8e-07,88047.0,88038.0,0.45796]
[1766177915432,4.8e-07,88047.0,88039.0,0.45796]
[1766177917761,0.01135718,88050.0,88039.0,0.45796]
[1766177917960,0.01135705,88051.0,88039.0,0.45796]
[1766177918167,0.01135718,88050.0,88039.0,0.45796]
[1766177918855,0.01135731,88049.0,88038.0,7.367e-05]
[1766177918997,0.01135757,88047.0,88038.0,7.367e-05]
[1766177919198,0.01135795,88044.0,88038.0,7.367e-05]
[1766177919408,0.01135808,88043.0,88038.0,7.367e-05]
[1766177919608,0.01135821,88042.0,88038.0,7.367e-05]
[1766177920213,0.01135834,88041.0,88038.0,3.67e-06]
[1766177920399,0.59024808,88043.0,88038.0,3.67e-06]
[1766177920641,0.50170166,88046.0,88038.0,3.67e-06]
[1766177920855,0.49034397,88046.0,88038.0,3.67e-06]
[1766177921058,0.47677,88046.0,88038.0,3.67e-06]
[1766177921301,0.48812769,88046.0,88038.0,3.67e-06]
[1766177921495,0.01135757,88047.0,88038.0,3.67e-06]
[1766177921839,0.01135744,88048.0,88038.0,3.67e-06]
[1766177922067,0.01135769,88046.0,88038.0,3.67e-06]
[1766177922278,0.01135744,88048.0,88038.0,3.67e-06]
[1766177922811,0.01135757,88047.0,88038.0,3.67e-06]
[1766177923184,0.01135769,88046.0,88038.0,3.67e-06]
[1766177923358,0.01135757,88047.0,88038.0,3.67e-06]
[1766177923684,0.01135782,88045.0,88038.0,3.67e-06]
[1766177924420,0.01135757,88047.0,88038.0,3.67e-06]
[1766177924622,0.0681457,88047.0,88038.0,3.67e-06]
[1766177924798,0.01135757,88047.0,88038.0,0.45796367]
[1766177925295,0.01135744,88048.0,88038.0,0.45796367]
[1766177925505,0.01135757,88047.0,88038.0,0.45796367]
[1766177925724,0.01135744,88048.0,88038.0,0.45796367]
[1766177925926,0.01135757,88047.0,88038.0,0.45796367]
[1766177926286,0.01135744,88048.0,88038.0,0.45796367]
[1766177926483,0.01135769,88046.0,88038.0,0.45796367]
[1766177926698,0.01135757,88047.0,88038.0,0.45796367]
[1766177926909,0.01135744,88048.0,88038.0,0.45796367]
[1766177927226,0.01135757,88047.0,88038.0,0.45796367]
[1766177927385,0.01135769,88046.0,88038.0,0.45796367]
[1766177927588,0.01135795,88044.0,88038.0,0.45796367]
[1766177927788,0.06814622,88046.0,88038.0,0.45796367]
[1766177928007,0.06814487,88048.0,88038.0,0.45796367]
[1766177928243,0.47677,88041.0,88038.0,3.67e-06]
[1766177928599,0.57889,88040.0,88038.0,3.67e-06]
[1766177929322,0.48812834,88041.0,88022.0,0.0004]
[1766177929323,0.47677,88037.0,88022.0,0.0004]
[1766177929548,7.774e-05,88037.0,88026.0,0.46932027]
[1766177929753,7.774e-05,88037.0,88026.0,0.45796]
[1766177929968,7.774e-05,88037.0,88031.0,0.00024805]
[1766177930199,7.774e-05,88037.0,88031.0,0.00596805]
[1766177930840,0.04203926,88064.0,88031.0,0.00596805]
[1766177930841,0.00572,88047.0,88035.0,0.5632]
[1766177931014,0.57889,88051.0,88037.0,0.45796]
[1766177931015,0.01135769,88046.0,88037.0,0.45796]
[1766177931221,0.47677,88062.0,88035.0,0.01135911]
[1766177931379,0.05678204,88056.0,88036.0,1.02115]
[1766177931579,0.05678204,88056.0,88035.0,0.01135911]
[1766177931580,0.01135705,88051.0,88034.0,1.02115]
[1766177932024,0.01135744,88048.0,88033.0,0.56319]
[1766177932412,0.01135782,88045.0,88034.0,0.00572]
[1766177932585,0.01357397,88041.0,88035.0,0.00572]
[1766177932789,1.05566,88040.0,88031.0,0.00024805]
[1766177933022,0.01357397,88040.0,88031.0,0.00024805]
[1766177933223,0.01135731,88049.0,88035.0,0.56319]
[1766177933376,0.01135718,88050.0,88036.0,0.45796]
[1766177933582,0.01135718,88050.0,88037.0,0.00572]
[1766177933977,0.06814405,88049.0,88037.0,0.00572]
[1766177934289,0.01135718,88050.0,88037.0,0.00572]
[1766177934808,0.01135744,88048.0,88037.0,0.00572]
[1766177935030,0.01135757,88047.0,88037.0,0.00572]
[1766177935552,7.782e-05,88062.0,88046.0,0.45796]
[1766177935840,0.0306816,88079.0,88056.0,0.5659864]
[1766177935841,0.47677,88073.0,88056.0,0.5659864]
[1766177935990,0.01357397,88070.0,88057.0,0.46368]
[1766177936188,0.02492857,88070.0,88057.0,0.46375782]
[1766177936429,0.01135473,88069.0,88057.0,0.46375782]
[1766177936651,0.01135486,88068.0,88057.0,0.46375782]
[1766177936799,0.57889,88064.0,88051.0,0.00572]
[1766177937139,0.57889,88064.0,88046.0,0.01135769]
[1766177937140,0.47677,88061.0,88049.0,0.00572]
[1766177937595,0.00010815,88064.0,88051.0,0.55463]
[1766177937832,0.00010815,88064.0,88054.0,0.45796]